fUSD/lending_fUSD_20250502
["ID","MTS","AMOUNT","RATE_DAILY","PERIOD"]
[359626947,1746193844476,-450.0,0.00019774,2]
[359626948,1746193844486,-450.0,0.00019774,2]
[359626949,1746193844496,-450.0,0.00019774,2]
[359626950,1746193844505,-548.35,0.00019774,2]
[359626951,1746193844514,-687.48,0.00019774,2]
[359626952,1746193844524,-450.0,0.00019774,2]
[359626953,1746193844533,-450.0,0.00019774,2]
[359626954,1746193844543,-450.0,0.00019774,2]
[359626955,1746193844552,-450.0,0.00019774,2]
[359626956,1746193844561,-450.0,0.00019774,2]
[359626957,1746193844571,-450.0,0.00019774,2]
[359626958,1746193844581,-450.0,0.00019774,2]
[359626959,1746193844591,-450.0,0.00019774,2]
[359626960,1746193844601,-478.03787714,0.00019774,2]
[359626961,1746193844611,-450.0,0.00019774,2]
[359626962,1746193844620,-450.0,0.00019774,2]
[359626963,1746193844630,-450.0,0.00019774,2]
[359626964,1746193844639,-450.0,0.00019774,2]
[359626965,1746193844649,-1142.43,0.00019774,2]
[359626966,1746193844659,-450.0,0.00019774,2]
[359626967,1746193844668,-450.0,0.00019774,2]
[359626968,1746193844678,-582.12,0.00019774,2]
[359626969,1746193844687,-627.27,0.00019774,2]
[359626970,1746193844697,-450.0,0.00019774,2]
[359626971,1746193844706,-450.0,0.00019774,2]
[359626972,1746193844716,-450.0,0.00019774,2]
[359626973,1746193844725,-550.5,0.00019774,2]
[359626974,1746193844734,-450.0,0.00019774,2]
[359626975,1746193844743,-450.0,0.00019774,2]
[359626976,1746193844753,-450.0,0.00019774,2]
[359626977,1746193844762,-450.0,0.00019774,2]
[359626978,1746193844771,-1471.93,0.00019774,2]
[359626979,1746193844781,-1519.18,0.00019774,2]
[359626980,1746193844791,-450.0,0.00019774,2]
[359626981,1746193844801,-450.0,0.00019774,2]
[359626982,1746193844811,-450.0,0.00019774,2]
[359626983,1746193844820,-450.0,0.00019774,2]
[359626984,1746193844831,-450.0,0.00019774,2]
[359626985,1746193844841,-839.28,0.00019774,2]
[359626986,1746193844851,-450.0,0.00019774,2]
[359626987,1746193844861,-450.0,0.00019774,2]
[359626988,1746193844871,-450.0,0.00019774,2]
[359626989,1746193844881,-450.0,0.00019774,2]
[359626990,1746193844891,-450.0,0.00019774,2]
[359626991,1746193844901,-450.0,0.00019774,2]
[359626992,1746193844910,-842.86,0.00019774,2]
[359626993,1746193844920,-450.0,0.00019774,2]
[359626994,1746193844929,-789.92,0.00019774,2]
[359626995,1746193844939,-450.0,0.00019774,2]
[359626996,1746193844949,-450.0,0.00019774,2]
[359626997,1746193844959,-450.0,0.00019774,2]
[359626998,1746193844969,-1987.86,0.00019774,2]
[359626999,1746193844979,-1149.56,0.00019774,2]
[359627000,1746193844989,-678.71,0.00019774,2]
[359627001,1746193844999,-482.41234061,0.00019774,2]
[359627002,1746193845009,-224.84445446,0.00019774,2]
[359627003,1746193845019,-450.0,0.00019774,2]
[359627004,1746193845029,-450.0,0.00019774,2]
[359627005,1746193845039,-450.0,0.00019774,2]
[359627006,1746193845049,-450.0,0.00019774,2]
[359627007,1746193845059,-980.04,0.00019774,2]
[359627008,1746193845069,-450.0,0.00019774,2]
[359627009,1746193845079,-450.0,0.00019774,2]
[359627010,1746193845089,-450.0,0.00019774,2]
[359627011,1746193845099,-450.0,0.00019774,2]
[359627012,1746193845109,-450.0,0.00019774,2]
[359627013,1746193845119,-450.0,0.00019774,2]
[359627014,1746193845130,-450.0,0.00019774,2]
[359627015,1746193845139,-488.54320447,0.00019774,2]
[359627016,1746193845150,-450.0,0.00019774,2]
[359627017,1746193845159,-685.7,0.00019774,2]
[359627018,1746193845169,-725.45,0.00019774,2]
[359627019,1746193845179,-450.0,0.00019774,2]
[359627020,1746193845188,-450.0,0.00019774,2]
[359627021,1746193845198,-450.0,0.00019774,2]
[359627022,1746193845208,-747.04,0.00019774,2]
[359627023,1746193845218,-450.0,0.00019774,2]
[359627024,1746193845227,-450.0,0.00019774,2]
[359627025,1746193845236,-450.0,0.00019774,2]
[359627026,1746193845246,-450.0,0.00019774,2]
[359627027,1746193845255,-450.0,0.00019774,2]
[359627028,1746193845264,-671.12,0.00019774,2]
[359627029,1746193845274,-450.0,0.00019774,2]
[359627030,1746193845284,-450.0,0.00019774,2]
[359627031,1746193845293,-450.0,0.00019774,2]
[359627032,1746193845302,-450.0,0.00019774,2]
[359627033,1746193845311,-504.3,0.00019774,2]
[359627034,1746193845320,-450.0,0.00019774,2]
[359627035,1746193845330,-450.0,0.00019774,2]
[359627036,1746193845340,-617.17,0.00019774,2]
[359627037,1746193845350,-450.0,0.00019774,2]
[359627038,1746193845359,-450.0,0.00019774,2]
[359627039,1746193845368,-804.46,0.00019774,2]
[359627040,1746193845377,-1410.11,0.00019774,2]
[359627041,1746193845386,-669.43,0.00019774,2]
[359627042,1746193845399,-450.0,0.00019774,2]
[359627043,1746193845408,-2344.03,0.00019774,2]
[359627044,1746193845418,-450.0,0.00019774,2]
[359627045,1746193845427,-450.0,0.00019774,2]
[359627046,1746193845436,-450.0,0.00019774,2]
[359627047,1746193845446,-450.0,0.00019774,2]
[359627048,1746193845456,-529.71,0.00019774,2]
[359627049,1746193845465,-738.65,0.00019774,2]
[359627050,1746193845476,-450.0,0.00019774,2]
[359627051,1746193845486,-1526.16,0.00019774,2]
[359627052,1746193845495,-558.93,0.00019774,2]
[359627053,1746193845505,-450.0,0.00019774,2]
[359627054,1746193845515,-450.0,0.00019774,2]
[359627055,1746193845524,-716.57,0.00019774,2]
[359627056,1746193845534,-997.31,0.00019774,2]
[359627057,1746193845543,-391.16393632,0.00019774,2]
[359627058,1746193845553,-450.0,0.00019774,2]
[359627059,1746193845563,-509.74,0.00019774,2]
[359627060,1746193845573,-450.0,0.00019774,2]
[359627061,1746193845643,-954.54,0.00019774,2]
[359627062,1746193845653,-459.6,0.00019774,2]
[359627063,1746193845662,-941.46,0.00019774,2]
[359627064,1746193845671,-450.0,0.00019774,2]
[359627065,1746193845680,-450.0,0.00019774,2]
[359627066,1746193845690,-450.0,0.00019774,2]
[359627067,1746193845699,-450.0,0.00019774,2]
[359627068,1746193845708,-857.7,0.00019774,2]
[359627069,1746193845718,-556.55,0.00019774,2]
[359627070,1746193845727,-591.31,0.00019774,2]
[359627071,1746193845736,-450.0,0.00019774,2]
[359627072,1746193845746,-248.25267956,0.00019774,2]
[359627073,1746193845755,-1420.49,0.00019774,2]
[359627074,1746193845765,-1143.55,0.00019774,2]
[359627075,1746193845774,-450.0,0.00019774,2]
[359627076,1746193845784,-450.0,0.00019774,2]
[359627077,1746193845794,-504.49,0.00019774,2]
[359627078,1746193845803,-1500.42,0.00019774,2]
[359627079,1746193845813,-662.74,0.00019774,2]
[359627080,1746193845824,-450.0,0.00019774,2]
[359627081,1746193845834,-450.0,0.00019774,2]
[359627082,1746193845843,-696.75,0.00019774,2]
[359627083,1746193845852,-450.0,0.00019774,2]
[359627084,1746193845862,-1879.31,0.00019774,2]
[359627085,1746193845871,-769.08,0.00019774,2]
[359627086,1746193845880,-639.9,0.00019774,2]
[359627087,1746193845889,-450.0,0.00019774,2]
[359627088,1746193845899,-450.0,0.00019774,2]
[359627089,1746193845908,-450.0,0.00019774,2]
[359627090,1746193845917,-5406.71390271,0.00019774,2]
[359627091,1746193845927,-163.57518956,0.00019775,2]
[359627092,1746193845936,-281.18989679,0.00019787,2]
[359627093,1746193845946,-1719.2617867,0.00019799,2]
[359627094,1746193845955,-5406.71390271,0.000198,2]
[359627095,1746193845965,-77985.56931546,0.000198,2]
[359627096,1746193845975,-281.18989679,0.00019824,2]
[359627097,1746193845984,-5406.71390271,0.00019825,2]
[359627098,1746193845994,-500.0,0.0001984,2]
[359627099,1746193846003,-2000.0,0.0001984,2]
[359627100,1746193846013,-200.0,0.0001984,2]
[359627101,1746193846023,-5406.71390271,0.0001985,2]
[359627102,1746193846032,-500.0,0.00019852,2]
[359627103,1746193846042,-219803.77559894,0.00019853,2]
[359627104,1746193846052,-1769.95928714,0.00019855,2]
[359627105,1746193846062,-281.18989679,0.00019862,2]
[359627106,1746193846071,-5406.71390271,0.00019875,2]
[359627107,1746193846081,-217.11897616,0.0001989,2]
[359627108,1746193846091,-5800.0,0.00019892,2]
[359627109,1746193846100,-734.7975019,0.000199,2]
[359627110,1746193846109,-7380.60260689,0.000199,2]
[359627111,1746193846119,-1000.0,0.000199,2]
[359627112,1746193846128,-261.27175557,0.000199,2]
[359627113,1746193846138,-1944.708,0.000199,2]
[359627114,1746193846147,-165.8,0.000199,2]
[359627115,1746193846157,-5800.0,0.000199,2]
[359627116,1746193846166,-1435.0,0.000199,2]
[359627117,1746193846175,-5406.71390271,0.000199,2]
[359627118,1746193846184,-72130.35050425,0.000199,2]
[359627119,1746193846194,-281.18989679,0.000199,2]
[359627120,1746193846203,-297.05834318,0.000199,2]
[359627121,1746193846213,-8949.43570268,0.000199,2]
[359627122,1746193846222,-1369.67959494,0.000199,2]
[359627123,1746193846231,-189.39229872,0.000199,3]
[359627124,1746193846240,-247.85985594,0.000199,2]
[359627125,1746193846250,-982.0,0.000199,2]
[359627126,1746193846260,-500.0,0.00019918,2]
[359627127,1746193846269,-297.05834316,0.00019924,2]
[359627128,1746193846279,-8949.43570268,0.00019924,2]
[359627129,1746193846289,-1369.67959493,0.00019924,2]
[359627130,1746193846298,-247.85985592,0.00019924,2]
[359627131,1746193846308,-151.0,0.00019943,2]
[359627132,1746193846318,-297.05834316,0.00019948,2]
[359627133,1746193846327,-8949.43570268,0.00019948,2]
[359627134,1746193846338,-1369.67959493,0.00019948,2]
[359627135,1746193846347,-247.85985592,0.00019948,2]
[359627136,1746193846357,-207.4,0.00019953,2]
[359627137,1746193846366,-151.0,0.00019954,2]
[359627138,1746193846375,-151.0,0.00019954,2]
[359627139,1746193846385,-668.65185757,0.00019954,2]
[359627140,1746193846397,-797.0,0.00019955,2]
[359627141,1746193846413,-866.118,0.00019955,2]
[359627142,1746193846423,-878.0,0.00019955,2]
[359627143,1746193846432,-153.0,0.00019955,2]
[359627144,1746193846442,-6753.0,0.00019955,2]
[359627146,1746193846452,-4006.0,0.00019955,2]
[359627147,1746193846461,-501.47327578,0.00019973,2]
[359627148,1746193846470,-306.32642117,0.00019973,2]
[359627149,1746193846479,-500.0,0.00019973,2]
[359627150,1746193846488,-500.0,0.00019973,2]
[359627151,1746193846498,-500.0,0.00019973,2]
[359627152,1746193846508,-501.66333751,0.00019973,2]
[359627153,1746193846518,-500.0,0.00019973,2]
[359627154,1746193846527,-500.0,0.00019973,2]
[359627155,1746193846536,-500.0,0.00019973,2]
[359627156,1746193846546,-505.99606481,0.00019973,2]
[359627157,1746193846557,-500.0,0.00019973,2]
[359627158,1746193846566,-500.0,0.00019973,2]
[359627159,1746193846576,-187.65011133,0.00019973,2]
[359627160,1746193846587,-502.14334775,0.00019973,2]
[359627161,1746193846596,-500.0,0.00019973,2]
[359627162,1746193846605,-500.0,0.00019973,2]
[359627163,1746193846614,-505.11388319,0.00019973,2]
[359627164,1746193846623,-500.8896261,0.00019973,2]
[359627165,1746193846633,-500.0,0.00019973,2]
[359627166,1746193846643,-217.11897616,0.0001999,2]
[359627167,1746193846652,-500.0,0.00019996,2]
[359627168,1746193846662,-591.61,0.00019997,2]
[359627169,1746193846672,-450.0,0.00019997,2]
[359627170,1746193846681,-461.56,0.00019997,2]
[359627171,1746193846690,-693.49,0.00019997,2]
[359627172,1746193846700,-450.0,0.00019997,2]
[359627173,1746193846709,-450.0,0.00019997,2]
[359627174,1746193846719,-3085.8,0.00019997,2]
[359627175,1746193846728,-450.0,0.00019997,2]
[359627176,1746193846737,-1350.31,0.00019997,2]
[359627177,1746193846746,-450.0,0.00019997,2]
[359627178,1746193846756,-554.76,0.00019997,2]
[359627179,1746193846765,-1121.13,0.00019997,2]
[359627180,1746193846775,-2815.03,0.00019997,2]
[359627181,1746193846784,-940.0,0.00019997,2]
[359627182,1746193846794,-485.66,0.00019997,2]
[359627183,1746193846803,-450.0,0.00019997,2]
[359627184,1746193846813,-1113.24,0.00019997,2]
[359627185,1746193846822,-450.0,0.00019997,2]
[359627186,1746193846832,-450.0,0.00019997,2]
[359627187,1746193846842,-493.5,0.00019997,2]
[359627188,1746193846852,-917.8,0.00019997,2]
[359627189,1746193846862,-676.14,0.00019997,2]
[359627190,1746193846871,-1113.24,0.00019998,2]
[359627191,1746193846882,-1113.24,0.00019998,2]
[359627192,1746193846892,-500.0,0.00019999,2]
[359627193,1746193846902,-666.0,0.00019999,2]
[359627194,1746193846911,-500.0,0.00019999,2]
[359627195,1746193846921,-300.0,0.00019999,2]
[359627196,1746193846930,-300.0,0.00019999,2]
[359627197,1746193846939,-1113.24,0.00019999,2]
[359627198,1746193846950,-1113.24,0.00019999,2]
[359627199,1746193846959,-1113.24,0.00019999,2]
[359627200,1746193846968,-1113.24,0.00019999,2]
[359627201,1746193846978,-1113.24,0.00019999,2]
[359627202,1746193846987,-1113.24,0.00019999,2]
[359627203,1746193846998,-1113.24,0.00019999,2]
[359627204,1746193847008,-1113.24,0.00019999,2]
[359627205,1746193847017,-1113.24,0.00019999,2]
[359627206,1746193847027,-1113.24,0.00019999,2]
[359627207,1746193847036,-1113.24,0.00019999,2]
[359627208,1746193847045,-1113.24,0.00019999,2]
[359627209,1746193847055,-1113.24,0.00019999,2]
[359627210,1746193847065,-1113.24,0.00019999,2]
[359627211,1746193847074,-1113.24,0.00019999,2]
[359627212,1746193847084,-1113.24,0.00019999,2]
[359627213,1746193847094,-1113.24,0.00019999,2]
[359627214,1746193847103,-1113.24,0.00019999,2]
[359627215,1746193847113,-1113.24,0.00019999,2]
[359627216,1746193847123,-1113.24,0.00019999,2]
[359627217,1746193847134,-1113.41570618,0.00019999,2]
[359627218,1746193847144,-543.96,0.00019999,2]
[359627219,1746193847154,-492.66,0.00019999,2]
[359627220,1746193847164,-761.99,0.00019999,2]
[359627221,1746193847174,-500.0,0.00019999,2]
[359627222,1746193847183,-500.0,0.00019999,2]
[359627223,1746193847192,-500.0,0.00019999,2]
[359627224,1746193847201,-500.0,0.00019999,2]
[359627225,1746193847210,-500.0,0.00019999,2]
[359627226,1746193847219,-500.0,0.00019999,2]
[359627227,1746193847228,-500.0,0.00019999,2]
[359627228,1746193847237,-500.0,0.00019999,2]
[359627229,1746193847247,-480.10416411,0.00019999,2]
[359627230,1746193847255,-692.25841914,0.0002,2]
[359627231,1746193847265,-506316.98814539,0.0002,2]
[359627232,1746193847274,-1548717.03339907,0.0002,2]
[359627233,1746193847283,-116149.94817135,0.0002,2]
[359627234,1746193847295,-166.61550215,0.0002,2]
[359627235,1746193847304,-1619821.18221121,0.0002,2]
[359627236,1746193847685,-67913.5,0.0002,2]
[359627237,1746193847696,-487.52557497,0.0002,2]
[359627238,1746193847731,-5606.02400411,0.0002,2]
[359627239,1746193847823,-478.15967926,0.0002,2]
[359627240,1746193847835,-2960.47715889,0.0002,2]
[359627241,1746193847846,-342.39545595,0.0002,2]
[359627242,1746193848350,-1062.35938038,0.0002,2]
[359627243,1746193848362,-5304.02095429,0.0002,2]
[359627244,1746193848373,-18345.69122021,0.0002,2]
[359627245,1746193848389,-370.36866154,0.0002,2]
[359627246,1746193848779,-579.999999,0.0002,2]
[359627247,1746193848791,-107872.66468222,0.0002,2]
[359627248,1746193848808,-2686.41,0.0002,2]
[359627249,1746193848825,-455.40893644,0.0002,2]
[359627250,1746193848835,-1472.59106356,0.0002,2]
[359627251,1746193848848,-286.43999999,0.0002,2]
[359627252,1746193848861,-547.58555703,0.0002,2]
[359627253,1746193906858,150.0,1e-08,2]
[359627257,1746193987838,1077.491075,7.945e-05,2]
[359627258,1746194048370,157.83211592,7.945e-05,2]
[359627259,1746194048394,919.65895908,7.945e-05,2]
[359627260,1746194058892,1000.0,0.00019217,2]
[359627261,1746194059720,250.0,0.00017,2]
[359627262,1746194060796,300.0,0.00019,2]
[359627263,1746194078170,184.04,0.0001948,2]
[359627264,1746194107887,1077.491075,7.945e-05,2]
[359627265,1746194111948,1161.2489,0.00019573,2]
[359627266,1746194118033,243.33,0.00018925,2]
[359627267,1746194168773,1077.491075,7.945e-05,2]
[359627268,1746194185788,200.0,0.00019217,2]
[359627269,1746194194442,167.61683408,9e-07,2]
[359627271,1746194228729,1077.491075,7.945e-05,2]
[359627272,1746194228762,477.40101592,0.00019572,2]
[359627273,1746194288323,1077.491075,7.945e-05,2]
[359627275,1746194316583,250.0,0.00018925,7]
[359627276,1746194344471,374.90695574,0.00032876,60]
[359627277,1746194380916,1000.0,0.00032876,60]
[359627278,1746194406551,1000.0,0.00032876,60]
[359627279,1746194431253,1000.0,0.00032876,60]
[359627280,1746194452405,154.43,0.00019217,2]
[359627281,1746194455686,-156.93627125,0.00019572,2]
[359627282,1746194455710,-72.6628456,0.00019572,2]
[359627283,1746194495194,167.61683408,9e-07,2]
[359627284,1746194508358,150.0,1e-08,2]
[359627285,1746194553840,204.431196,0.00019237,2]
[359627343,1746194889271,290.985161,0.00019237,2]
[359627373,1746195032093,-166.77,0.00019334,2]
[359627374,1746195032103,-200.0,0.00019453,2]
[359627375,1746195032113,-246.94945882,0.0001955,2]
[359627376,1746195032127,-1088.5861,0.00019572,2]
[359627377,1746195032137,-200.0,0.00019584,2]
[359627378,1746195032146,-1200.0,0.0001967,2]
[359627379,1746195032155,-3028.92322875,0.00019671,2]
[359627380,1746195032165,-300.0,0.00019671,2]
[359627381,1746195032174,-500.0,0.00019672,2]
[359627382,1746195032184,-500.0,0.00019672,2]
[359627383,1746195032193,-500.0,0.00019672,2]
[359627384,1746195032203,-500.0,0.00019672,2]
[359627385,1746195032212,-500.0,0.00019672,2]
[359627386,1746195032222,-500.0,0.00019672,2]
[359627387,1746195032231,-500.0,0.00019672,2]
[359627388,1746195032241,-500.0,0.00019672,2]
[359627389,1746195032250,-500.0,0.00019672,2]
[359627390,1746195032259,-500.0,0.00019672,2]
[359627391,1746195032268,-500.0,0.00019672,2]
[359627392,1746195032278,-500.0,0.00019672,2]
[359627393,1746195032287,-500.0,0.00019672,2]
[359627394,1746195032296,-500.0,0.00019672,2]
[359627395,1746195032305,-241.77012029,0.00019672,2]
[359627396,1746195032315,-500.0,0.00019672,2]
[359627397,1746195032325,-500.0,0.00019672,2]
[359627398,1746195032334,-500.0,0.00019672,2]
[359627399,1746195032344,-500.0,0.00019672,2]
[359627400,1746195032354,-500.0,0.00019672,2]
[359627401,1746195032364,-500.0,0.00019672,2]
[359627402,1746195032375,-500.0,0.00019672,2]
[359627403,1746195032385,-500.0,0.00019672,2]
[359627404,1746195032395,-222.0931065,0.00019672,2]
[359627405,1746195032404,-183.3505234,0.00019672,2]
[359627406,1746195032414,-177.05047639,0.00019672,2]
[359627407,1746195032423,-4991.82264871,0.00019672,2]
[359627408,1746195032432,-23899.78433714,0.00019673,2]
[359627409,1746195032466,-288.36232658,0.00019673,2]
[359627411,1746195032477,-349.4289,0.00019673,2]
[359627414,1746195032515,-5075.939198,0.00019673,2]
[359627424,1746195032664,-422.2181089,0.00019673,2]
[359627427,1746195032676,-382.00777964,0.00019673,2]
[359627429,1746195032687,-282.52499996,0.00019673,2]
[359627451,1746195038381,-438.75999884,0.00019673,2]
[359627635,1746195040230,-459.565,0.00019673,2]
[359627637,1746195040242,-302.50366056,0.00019673,2]
[359627648,1746195040335,-40062.23004669,0.00019673,2]
[359627650,1746195040346,-764.6447,0.00019673,2]
[359627652,1746195040355,-4000.0,0.00019673,2]
[359627654,1746195040364,-589.98642906,0.00019673,2]
[359627656,1746195040376,-3028.92322874,0.00019696,2]
[359627658,1746195040385,-4991.8226487,0.00019697,2]
[359627660,1746195040394,-1000.0,0.000197,2]
[359627662,1746195040404,-183.35052335,0.0001971,2]
[359627664,1746195040414,-3028.92322874,0.00019722,2]
[359627666,1746195040423,-4991.8226487,0.00019723,2]
[359627668,1746195040433,-3028.92322874,0.00019747,2]
[359627670,1746195040442,-183.35052335,0.00019748,2]
[359627672,1746195040451,-177.05047637,0.00019748,2]
[359627674,1746195040462,-4991.8226487,0.00019748,2]
[359627676,1746195040472,-1000.0,0.00019762,2]
[359627678,1746195040481,-1000.0,0.00019767,2]
[359627680,1746195040492,-500.0,0.00019771,2]
[359627682,1746195040502,-515.64956722,0.00019771,2]
[359627684,1746195040511,-450.0,0.00019771,2]
[359627686,1746195040521,-450.0,0.00019771,2]
[359627688,1746195040531,-450.0,0.00019771,2]
[359627690,1746195040541,-450.0,0.00019771,2]
[359627692,1746195040551,-450.0,0.00019771,2]
[359627694,1746195040561,-450.0,0.00019771,2]
[359627696,1746195040570,-522.43,0.00019771,2]
[359627698,1746195040579,-567.05,0.00019771,2]
[359627700,1746195040589,-450.0,0.00019771,2]
[359627702,1746195040599,-553.07,0.00019771,2]
[359627704,1746195040607,-450.0,0.00019771,2]
[359627706,1746195040617,-450.0,0.00019771,2]
[359627708,1746195040627,-1029.13,0.00019771,2]
[359627710,1746195040637,-450.0,0.00019771,2]
[359627712,1746195040646,-525.85012105,0.00019771,2]
[359627713,1746195040656,-450.0,0.00019771,2]
[359627715,1746195040665,-450.0,0.00019771,2]
[359627717,1746195040674,-450.0,0.00019771,2]
[359627719,1746195040683,-450.0,0.00019771,2]
[359627721,1746195040693,-450.0,0.00019771,2]
[359627723,1746195040702,-464.4,0.00019771,2]
[359627725,1746195040712,-250.0,0.00019771,2]
[359627727,1746195040721,-450.0,0.00019771,2]
[359627729,1746195040731,-450.0,0.00019771,2]
[359627731,1746195040743,-450.0,0.00019771,2]
[359627733,1746195040752,-452.67,0.00019771,2]
[359627735,1746195040761,-450.0,0.00019771,2]
[359627737,1746195040771,-450.0,0.00019771,2]
[359627739,1746195040780,-450.0,0.00019771,2]
[359627741,1746195040790,-671.954655,0.00019771,2]
[359627743,1746195040799,-450.0,0.00019771,2]
[359627745,1746195040811,-450.0,0.00019771,2]
[359627747,1746195040822,-450.0,0.00019771,2]
[359627749,1746195040832,-487.44,0.00019771,2]
[359627751,1746195040842,-450.0,0.00019771,2]
[359627753,1746195040851,-450.0,0.00019771,2]
[359627755,1746195040860,-505.45,0.00019771,2]
[359627757,1746195040869,-450.0,0.00019771,2]
[359627759,1746195040880,-450.0,0.00019771,2]
[359627761,1746195040890,-479.05,0.00019771,2]
[359627763,1746195040899,-654.61,0.00019771,2]
[359627765,1746195040909,-450.0,0.00019771,2]
[359627767,1746195040919,-450.0,0.00019771,2]
[359627769,1746195040928,-450.0,0.00019771,2]
[359627771,1746195040938,-870.743717,0.00019771,2]
[359627773,1746195040947,-450.0,0.00019771,2]
[359627775,1746195040958,-450.0,0.00019771,2]
[359627777,1746195040968,-450.0,0.00019771,2]
[359627779,1746195040978,-500.0,0.00019771,2]
[359627781,1746195040987,-1490.33,0.00019771,2]
[359627783,1746195040996,-507.26,0.00019771,2]
[359627785,1746195041005,-450.0,0.00019771,2]
[359627787,1746195041014,-500.45,0.00019771,2]
[359627789,1746195041024,-450.0,0.00019771,2]
[359627791,1746195041033,-450.0,0.00019771,2]
[359627793,1746195041042,-491.37161119,0.00019771,2]
[359627795,1746195041052,-450.0,0.00019771,2]
[359627797,1746195041061,-450.0,0.00019771,2]
[359627799,1746195041070,-450.0,0.00019771,2]
[359627801,1746195041079,-450.0,0.00019771,2]
[359627803,1746195041089,-450.0,0.00019771,2]
[359627805,1746195041098,-459.73,0.00019771,2]
[359627807,1746195041108,-450.0,0.00019771,2]
[359627808,1746195041117,-701.29,0.00019771,2]
[359627810,1746195041127,-450.0,0.00019771,2]
[359627812,1746195041137,-1175.05,0.00019771,2]
[359627814,1746195041146,-450.0,0.00019771,2]
[359627816,1746195041155,-450.0,0.00019771,2]
[359627818,1746195041165,-450.0,0.00019771,2]
[359627820,1746195041174,-450.0,0.00019771,2]
[359627822,1746195041183,-450.0,0.00019771,2]
[359627824,1746195041193,-693.24,0.00019771,2]
[359627826,1746195041202,-450.0,0.00019771,2]
[359627828,1746195041211,-450.0,0.00019771,2]
[359627830,1746195041221,-654.21,0.00019771,2]
[359627832,1746195041230,-554.69,0.00019771,2]
[359627834,1746195041240,-736.85,0.00019771,2]
[359627836,1746195041249,-450.0,0.00019771,2]
[359627838,1746195041258,-450.0,0.00019771,2]
[359627840,1746195041268,-450.0,0.00019771,2]
[359627842,1746195041278,-450.0,0.00019771,2]
[359627844,1746195041287,-450.0,0.00019771,2]
[359627846,1746195041297,-457.78,0.00019771,2]
[359627848,1746195041306,-511.43,0.00019771,2]
[359627850,1746195041315,-546.07,0.00019771,2]
[359627852,1746195041325,-752.06,0.00019771,2]
[359627854,1746195041334,-450.0,0.00019771,2]
[359627855,1746195041344,-450.0,0.00019771,2]
[359627856,1746195041353,-450.0,0.00019771,2]
[359627857,1746195041362,-450.0,0.00019771,2]
[359627858,1746195041372,-450.0,0.00019771,2]
[359627859,1746195041383,-450.0,0.00019771,2]
[359627860,1746195041392,-450.0,0.00019771,2]
[359627861,1746195041401,-450.0,0.00019771,2]
[359627862,1746195041410,-625.75,0.00019771,2]
[359627863,1746195041418,-450.0,0.00019771,2]
[359627864,1746195041427,-450.0,0.00019771,2]
[359627865,1746195041435,-428.82262756,0.00019771,2]
[359627866,1746195041444,-531.7,0.00019771,2]
[359627867,1746195041453,-495.53,0.00019771,2]
[359627868,1746195041462,-640.38,0.00019771,2]
[359627869,1746195041470,-450.0,0.00019771,2]
[359627870,1746195041479,-523.16,0.00019771,2]